Workbook

Sheet Instructions

Sheet Meta data_sheet
A1: Ambient Monitoring Station | B1: Details | D1: Ambient Monitoring Results | E1: Details
A2: Location | B2: Will-gai | D2: PM2.5 monitoring start (dd/mm/yyyy hh:mm) | E2: 2025-03-01
A3: Easting | B3: =VLOOKUP($B$2,'Meta data_lookup'!$A$2:$D$5,2,FALSE) -> 231804 | D3: PM2.5 monitoring end | E3: 2025-04-01
A4: Northing | B4: =VLOOKUP($B$2,'Meta data_lookup'!$A$2:$D$5,3,FALSE) -> 6596392 | D4: PM2.5 monitoring period (h) | E4: =(E3-E2)*24 -> 744
A5: Site elevation (m) | B5: =VLOOKUP($B$2,'Meta data_lookup'!$A$2:$D$5,4,FALSE) -> 294 | D5: Number of valid PM2.5 results | E5: =COUNTIF('Raw data_sheet'!G2:G745,"Valid") -> 740
A6: Description of surrounding land use | B6: Agriculture/Mining | D6: Proportion of valid PM2.5 results (%) | E6: =E5/E4 -> 0.9946236559
A7: Typical sources impacting on the site | B7: Agriculture | D7: PM10 monitoring start (dd/mm/yyyy hh:mm) | E7: 2025-03-01
A8: Site compliance with AS/NZS 3580.1.1:2007 | B8: Yes | D8: PM10 monitoring end | E8: 2025-04-01
A9: PM2.5 method compliance with AS/NZS 3580.9.13:2013 | B9: Yes | D9: PM10 monitoring period (h) | E9: =(E8-E7)*24 -> 744
A10: PM2.5 instrument make | B10: Thermo Scientific | D10: Number of valid PM10 results | E10: =COUNTIF('Raw data_sheet'!J2:J745,"Valid") -> 740
A11: PM2.5 instrument model | B11: 1405DF | D11: Proportion of valid PM10 results (%) | E11: =E10/E9 -> 0.9946236559
A12: PM2.5 instrument intake height (m) | B12: 3.5
A13: PM10 method compliance with AS 3580.9.8-2008 | B13: No*
A14: PM10 instrument make | B14: Thermo Scientific
A15: PM10 instrument model | B15: 1405DF
A16: PM10 instrument intake height (m) | B16: 3.5
A17: *The 1405DF TEOM used at this site measures PM10 indirectly rather than directly. The unit does however meet the intent of AS 3580.9.8-2008, and this method has been accredited by the USEPA. It is considered scientifically robust and is used extensively throughout NSW with EPA's knowledge and informal acceptance.

Sheet Meta data_lookup
A1: Location | B1: Easting | C1: Northing | D1: Site elevation (m)
A2: Maules Creek | B2: 225302 | C2: 6623037 | D2: ND
A3: Breeza | B3: 237993 | C3: 6542606 | D3: ND
A4: Will-gai | B4: 231804 | C4: 6596392 | D4: 294
A5: Werris Creek | B5: 276783 | C5: 6528734 | D5: 362

Sheet Raw data_format
A1: Parameter | B1: Format | C1: Comment | D1: Units of measure | E1: Minimum | F1: Maximum
A2: Year | B2: yyyy | C2: 4 integer format | D2: Not applicable | E2: 2015 | F2: Until reporting ceases
A3: Month | B3: mm | C3: 2 integer format | D3: Not applicable | E3: 1 | F3: 12
A4: Day | B4: dd | C4: 2 integer format | D4: Not applicable | E4: 1 | F4: 31
A5: Hour | B5: hh | C5: 2 integer format | D5: Not applicable | E5: 0 | F5: 23
A6: PM10 | B6: 0 | C6: 1 decimal place resolution | D6: µg/m3 | E6: Negative | F6: Instrument specific
A7: PM2.5 | B7: 0 | C7: 2 decimal place resolution | D7: µg/m3 | E7: Negative | F7: Instrument specific
A8: Status | B8: Text | C8: 7 character format | D8: Not applicable | E8: Valid | F8: Invalid

Sheet Raw data_sheet
A1: Year | B1: Month | C1: Day | D1: Hour | E1: Date and time | F1: PM2.5_hourly | G1: PM2.5_Data_Status | H1: PM2.5_24hr_rolling_average | I1: PM10_hourly | J1: PM10_Data_Status | K1: PM10_24hr_rolling_average | N1: PM2.5_hourly_valid_plot | O1: PM2.5_24hr_rolling_ave_valid_plot | P1: PM10_hourly_valid_plot | Q1: PM10_24hr_rolling_ave_valid_plot | R1: PM10_hourly_valid_plot_series | S1: PM10_24hr_rolling_average_valid_plot_series | T1: PM2.5_hourly_valid_plot_series | U1: PM2.5_24hr_rolling_average_valid_plot_series
A2: 2025 | B2: 3 | C2: 1 | D2: 0 | E2: =DATE(A2,B2,C2)+TIME(D2,0,0) -> 45717 | F2: 15.18 | G2: Valid | H2: 17.44041667 | I2: 21.91 | J2: Valid | K2: 39.71583333 | N2: =IF(G2="Valid", F2, NA()) -> 15.18 | O2: =IF(G2="Valid", H2, NA()) -> 17.44041667 | P2: =IF(J2="Valid", I2, NA()) -> 21.91 | Q2: =IF(J2="Valid", K2, NA()) -> 39.71583333 | R2: 21.91 | S2: 39.71583333 | T2: 15.18 | U2: 17.44041667
A3: 2025 | B3: 3 | C3: =C2 -> 1 | D3: =IF(D2=23,0,D2+1) -> 1 | E3: =E2+0.0416666666666666 -> 45717.04167 | F3: 15.56 | G3: Valid | H3: 17.79375 | I3: 29.97 | J3: Valid | K3: 40.4375 | N3: 15.56 | O3: 17.79375 | P3: 29.97 | Q3: 40.4375 | R3: 29.97 | S3: 40.4375 | T3: 15.56 | U3: 17.79375
A4: 2025 | B4: 3 | C4: =C3 -> 1 | D4: =IF(D3=23,0,D3+1) -> 2 | E4: =E3+0.0416666666666666 -> 45717.08333 | F4: 16.99 | G4: Valid | H4: 18.02541667 | I4: 32.42 | J4: Valid | K4: 41.13083333 | N4: 16.99 | O4: 18.02541667 | P4: 32.42 | Q4: 41.13083333 | R4: 32.42 | S4: 41.13083333 | T4: 16.99 | U4: 18.02541667
A5: 2025 | B5: 3 | C5: 1 | D5: 3 | E5: 45717.125 | F5: 19.66 | G5: Valid | H5: 18.36541667 | I5: 34.74 | J5: Valid | K5: 41.89375 | N5: 19.66 | O5: 18.36541667 | P5: 34.74 | Q5: 41.89375 | R5: 34.74 | S5: 41.89375 | T5: 19.66 | U5: 18.36541667
A6: 2025 | B6: 3 | C6: 1 | D6: 4 | E6: 45717.16667 | F6: 19.93 | G6: Valid | H6: 18.54791667 | I6: 36.07 | J6: Valid | K6: 40.64041667 | N6: 19.93 | O6: 18.54791667 | P6: 36.07 | Q6: 40.64041667 | R6: 36.07 | S6: 40.64041667 | T6: 19.93 | U6: 18.54791667
A7: 2025 | B7: 3 | C7: 1 | D7: 5 | E7: 45717.20833 | F7: 19.81 | G7: Valid | H7: 18.69291667 | I7: 29.84 | J7: Valid | K7: 39.79791667 | N7: 19.81 | O7: 18.69291667 | P7: 29.84 | Q7: 39.79791667 | R7: 29.84 | S7: 39.79791667 | T7: 19.81 | U7: 18.69291667
A8: 2025 | B8: 3 | C8: 1 | D8: 6 | E8: 45717.25 | F8: 17.33 | G8: Valid | H8: 17.07958333 | I8: 32.12 | J8: Valid | K8: 31.50166667 | N8: 17.33 | O8: 17.07958333 | P8: 32.12 | Q8: 31.50166667 | R8: 32.12 | S8: 31.50166667 | T8: 17.33 | U8: 17.07958333
A9: 2025 | B9: 3 | C9: 1 | D9: 7 | E9: 45717.29167 | F9: 40.37 | G9: Valid | H9: 17.80791667 | I9: 161.82 | J9: Valid | K9: 35.22958333 | N9: 40.37 | O9: 17.80791667 | P9: 161.82 | Q9: 35.22958333 | R9: 161.82 | S9: 35.22958333 | T9: 40.37 | U9: 17.80791667
A10: 2025 | B10: 3 | C10: 1 | D10: 8 | E10: 45717.33333 | F10: 18.97 | G10: Valid | H10: 17.97708333 | I10: 50.26 | J10: Valid | K10: 35.63291667 | N10: 18.97 | O10: 17.97708333 | P10: 50.26 | Q10: 35.63291667 | R10: 50.26 | S10: 35.63291667 | T10: 18.97 | U10: 17.97708333
A11: 2025 | B11: 3 | C11: 1 | D11: 9 | E11: 45717.375 | F11: 17.62 | G11: Valid | H11: 18.21416667 | I11: 37.26 | J11: Valid | K11: 36.35708333 | N11: 17.62 | O11: 18.21416667 | P11: 37.26 | Q11: 36.35708333 | R11: 37.26 | S11: 36.35708333 | T11: 17.62 | U11: 18.21416667
A12: 2025 | B12: 3 | C12: 1 | D12: 10 | E12: 45717.41667 | F12: 14.56 | G12: Valid | H12: 18.385 | I12: 33.04 | J12: Valid | K12: 36.68 | N12: 14.56 | O12: 18.385 | P12: 33.04 | Q12: 36.68 | R12: 33.04 | S12: 36.68 | T12: 14.56 | U12: 18.385
A13: 2025 | B13: 3 | C13: 1 | D13: 11 | E13: 45717.45833 | F13: 16.53 | G13: Valid | H13: 18.45333333 | I13: 25.74 | J13: Valid | K13: 36.715 | N13: 16.53 | O13: 18.45333333 | P13: 25.74 | Q13: 36.715 | R13: 25.74 | S13: 36.715 | T13: 16.53 | U13: 18.45333333
A14: 2025 | B14: 3 | C14: 1 | D14: 12 | E14: 45717.5 | F14: 17.38 | G14: Valid | H14: 18.63 | I14: 26.17 | J14: Valid | K14: 36.8675 | N14: 17.38 | O14: 18.63 | P14: 26.17 | Q14: 36.8675 | R14: 26.17 | S14: 36.8675 | T14: 17.38 | U14: 18.63
A15: 2025 | B15: 3 | C15: 1 | D15: 13 | E15: 45717.54167 | F15: 13.71 | G15: Valid | H15: 18.67208333 | I15: 22.36 | J15: Valid | K15: 36.6775 | N15: 13.71 | O15: 18.67208333 | P15: 22.36 | Q15: 36.6775 | R15: 22.36 | S15: 36.6775 | T15: 13.71 | U15: 18.67208333
A16: 2025 | B16: 3 | C16: 1 | D16: 14 | E16: 45717.58333 | F16: 7.3 | G16: Valid | H16: 18.57916667 | I16: 17.14 | J16: Valid | K16: 36.56041667 | N16: 7.3 | O16: 18.57916667 | P16: 17.14 | Q16: 36.56041667 | R16: 17.14 | S16: 36.56041667 | T16: 7.3 | U16: 18.57916667
A17: 2025 | B17: 3 | C17: 1 | D17: 15 | E17: 45717.625 | F17: 18.36 | G17: Valid | H17: 18.66375 | I17: 32.23 | J17: Valid | K17: 36.71875 | N17: 18.36 | O17: 18.66375 | P17: 32.23 | Q17: 36.71875 | R17: 32.23 | S17: 36.71875 | T17: 18.36 | U17: 18.66375
A18: 2025 | B18: 3 | C18: 1 | D18: 16 | E18: 45717.66667 | F18: 17.74 | G18: Valid | H18: 18.90375 | I18: 27.03 | J18: Valid | K18: 36.65208333 | N18: 17.74 | O18: 18.90375 | P18: 27.03 | Q18: 36.65208333 | R18: 27.03 | S18: 36.65208333 | T18: 17.74 | U18: 18.90375
A19: 2025 | B19: 3 | C19: 1 | D19: 17 | E19: 45717.70833 | F19: 11.03 | G19: Valid | H19: 18.91166667 | I19: 22.87 | J19: Valid | K19: 36.41041667 | N19: 11.03 | O19: 18.91166667 | P19: 22.87 | Q19: 36.41041667 | R19: 22.87 | S19: 36.41041667 | T19: 11.03 | U19: 18.91166667
A20: 2025 | B20: 3 | C20: 1 | D20: 18 | E20: 45717.75 | F20: 20.94 | G20: Valid | H20: 18.75333333 | I20: 29.33 | J20: Valid | K20: 36.21375 | N20: 20.94 | O20: 18.75333333 | P20: 29.33 | Q20: 36.21375 | R20: 29.33 | S20: 36.21375 | T20: 20.94 | U20: 18.75333333
A21: 2025 | B21: 3 | C21: 1 | D21: 19 | E21: 45717.79167 | F21: 22.02 | G21: Valid | H21: 18.75875 | I21: 30.33 | J21: Valid | K21: 36.12125 | N21: 22.02 | O21: 18.75875 | P21: 30.33 | Q21: 36.12125 | R21: 30.33 | S21: 36.12125 | T21: 22.02 | U21: 18.75875
A22: 2025 | B22: 3 | C22: 1 | D22: 20 | E22: 45717.83333 | F22: 21.11 | G22: Valid | H22: 18.54166667 | I22: 25.78 | J22: Valid | K22: 35.73833333 | N22: 21.11 | O22: 18.54166667 | P22: 25.78 | Q22: 35.73833333 | R22: 25.78 | S22: 35.73833333 | T22: 21.11 | U22: 18.54166667
A23: 2025 | B23: 3 | C23: 1 | D23: 21 | E23: 45717.875 | F23: 21.65 | G23: Valid | H23: 18.55333333 | I23: 30.07 | J23: Valid | K23: 35.60666667 | N23: 21.65 | O23: 18.55333333 | P23: 30.07 | Q23: 35.60666667 | R23: 30.07 | S23: 35.60666667 | T23: 21.65 | U23: 18.55333333
A24: 2025 | B24: 3 | C24: 1 | D24: 22 | E24: 45717.91667 | F24: 12.74 | G24: Valid | H24: 18.03416667 | I24: 19.78 | J24: Valid | K24: 34.68958333 | N24: 12.74 | O24: 18.03416667 | P24: 19.78 | Q24: 34.68958333 | R24: 19.78 | S24: 34.68958333 | T24: 12.74 | U24: 18.03416667
A25: 2025 | B25: 3 | C25: =C24 -> 1 | D25: 23 | E25: 45717.95833 | F25: 14.71 | G25: Valid | H25: 17.96666667 | I25: 24.01 | J25: Valid | K25: 34.67875 | N25: 14.71 | O25: 17.96666667 | P25: 24.01 | Q25: 34.67875 | R25: 24.01 | S25: 34.67875 | T25: 14.71 | U25: 17.96666667
A26: 2025 | B26: 3 | C26: =C2+1 -> 2 | D26: 0 | E26: 45718 | F26: 15.95 | G26: Valid | H26: 17.99875 | I26: 21.57 | J26: Valid | K26: 34.66458333 | N26: 15.95 | O26: 17.99875 | P26: 21.57 | Q26: 34.66458333 | R26: 21.57 | S26: 34.66458333 | T26: 15.95 | U26: 17.99875
A27: 2025 | B27: 3 | C27: =C3+1 -> 2 | D27: 1 | E27: 45718.04167 | F27: 10.29 | G27: Valid | H27: 17.77916667 | I27: 15.03 | J27: Valid | K27: 34.04208333 | N27: 10.29 | O27: 17.77916667 | P27: 15.03 | Q27: 34.04208333 | R27: 15.03 | S27: 34.04208333 | T27: 10.29 | U27: 17.77916667
A28: 2025 | B28: 3 | C28: 2 | D28: 2 | E28: 45718.08333 | F28: 14.65 | G28: Valid | H28: 17.68166667 | I28: 19.43 | J28: Valid | K28: 33.50083333 | N28: 14.65 | O28: 17.68166667 | P28: 19.43 | Q28: 33.50083333 | R28: 19.43 | S28: 33.50083333 | T28: 14.65 | U28: 17.68166667
A29: 2025 | B29: 3 | C29: 2 | D29: 3 | E29: 45718.125 | F29: 14.21 | G29: Valid | H29: 17.45458333 | I29: 19.19 | J29: Valid | K29: 32.85291667 | N29: 14.21 | O29: 17.45458333 | P29: 19.19 | Q29: 32.85291667 | R29: 19.19 | S29: 32.85291667 | T29: 14.21 | U29: 17.45458333
A30: 2025 | B30: 3 | C30: 2 | D30: 4 | E30: 45718.16667 | F30: 12.67 | G30: Valid | H30: 17.15208333 | I30: 20.36 | J30: Valid | K30: 32.19833333 | N30: 12.67 | O30: 17.15208333 | P30: 20.36 | Q30: 32.19833333 | R30: 20.36 | S30: 32.19833333 | T30: 12.67 | U30: 17.15208333
A31: 2025 | B31: 3 | C31: 2 | D31: 5 | E31: 45718.20833 | F31: 14.84 | G31: Valid | H31: 16.945 | I31: 22.79 | J31: Valid | K31: 31.90458333 | N31: 14.84 | O31: 16.945 | P31: 22.79 | Q31: 31.90458333 | R31: 22.79 | S31: 31.90458333 | T31: 14.84 | U31: 16.945
A32: 2025 | B32: 3 | C32: 2 | D32: 6 | E32: 45718.25 | F32: 24.86 | G32: Valid | H32: 17.25875 | I32: 65.62 | J32: Valid | K32: 33.30041667 | N32: 24.86 | O32: 17.25875 | P32: 65.62 | Q32: 33.30041667 | R32: 65.62 | S32: 33.30041667 | T32: 24.86 | U32: 17.25875
A33: 2025 | B33: 3 | C33: 2 | D33: 7 | E33: 45718.29167 | F33: 26.89 | G33: Valid | H33: 16.69708333 | I33: 74.31 | J33: Valid | K33: 29.65416667 | N33: 26.89 | O33: 16.69708333 | P33: 74.31 | Q33: 29.65416667 | R33: 74.31 | S33: 29.65416667 | T33: 26.89 | U33: 16.69708333
A34: 2025 | B34: 3 | C34: 2 | D34: 8 | E34: 45718.33333 | F34: 25.44 | G34: Valid | H34: 16.96666667 | I34: 72.81 | J34: Valid | K34: 30.59375 | N34: 25.44 | O34: 16.96666667 | P34: 72.81 | Q34: 30.59375 | R34: 72.81 | S34: 30.59375 | T34: 25.44 | U34: 16.96666667
A35: 2025 | B35: 3 | C35: 2 | D35: 9 | E35: 45718.375 | F35: 15.01 | G35: Valid | H35: 16.85791667 | I35: 29.85 | J35: Valid | K35: 30.285 | N35: 15.01 | O35: 16.85791667 | P35: 29.85 | Q35: 30.285 | R35: 29.85 | S35: 30.285 | T35: 15.01 | U35: 16.85791667
A36: 2025 | B36: 3 | C36: 2 | D36: 10 | E36: 45718.41667 | F36: 18.19 | G36: Valid | H36: 17.00916667 | I36: 25.74 | J36: Valid | K36: 29.98083333 | N36: 18.19 | O36: 17.00916667 | P36: 25.74 | Q36: 29.98083333 | R36: 25.74 | S36: 29.98083333 | T36: 18.19 | U36: 17.00916667
A37: 2025 | B37: 3 | C37: 2 | D37: 11 | E37: 45718.45833 | F37: 16.71 | G37: Valid | H37: 17.01666667 | I37: 27.81 | J37: Valid | K37: 30.06708333 | N37: 16.71 | O37: 17.01666667 | P37: 27.81 | Q37: 30.06708333 | R37: 27.81 | S37: 30.06708333 | T37: 16.71 | U37: 17.01666667
A38: 2025 | B38: 3 | C38: 2 | D38: 12 | E38: 45718.5 | F38: 13.35 | G38: Valid | H38: 16.84875 | I38: 21 | J38: Valid | K38: 29.85166667 | N38: 13.35 | O38: 16.84875 | P38: 21 | Q38: 29.85166667 | R38: 21 | S38: 29.85166667 | T38: 13.35 | U38: 16.84875
A39: 2025 | B39: 3 | C39: 2 | D39: 13 | E39: 45718.54167 | F39: 16.06 | G39: Valid | H39: 16.94666667 | I39: 23.22 | J39: Valid | K39: 29.8875 | N39: 16.06 | O39: 16.94666667 | P39: 23.22 | Q39: 29.8875 | R39: 23.22 | S39: 29.8875 | T39: 16.06 | U39: 16.94666667
A40: 2025 | B40: 3 | C40: 2 | D40: 14 | E40: 45718.58333 | F40: 14.99 | G40: Valid | H40: 17.26708333 | I40: 23.46 | J40: Valid | K40: 30.15083333 | N40: 14.99 | O40: 17.26708333 | P40: 23.46 | Q40: 30.15083333 | R40: 23.46 | S40: 30.15083333 | T40: 14.99 | U40: 17.26708333
A41: 2025 | B41: 3 | C41: 2 | D41: 15 | E41: 45718.625 | F41: 17.44 | G41: Valid | H41: 17.22875 | I41: 29.31 | J41: Valid | K41: 30.02916667 | N41: 17.44 | O41: 17.22875 | P41: 29.31 | Q41: 30.02916667 | R41: 29.31 | S41: 30.02916667 | T41: 17.44 | U41: 17.22875
A42: 2025 | B42: 3 | C42: 2 | D42: 16 | E42: 45718.66667 | F42: 19.71 | G42: Valid | H42: 17.31083333 | I42: 29.88 | J42: Valid | K42: 30.14791667 | N42: 19.71 | O42: 17.31083333 | P42: 29.88 | Q42: 30.14791667 | R42: 29.88 | S42: 30.14791667 | T42: 19.71 | U42: 17.31083333
A43: 2025 | B43: 3 | C43: 2 | D43: 17 | E43: 45718.70833 | F43: 20.02 | G43: Valid | H43: 17.68541667 | I43: 37.39 | J43: Valid | K43: 30.75291667 | N43: 20.02 | O43: 17.68541667 | P43: 37.39 | Q43: 30.75291667 | R43: 37.39 | S43: 30.75291667 | T43: 20.02 | U43: 17.68541667
A44: 2025 | B44: 3 | C44: 2 | D44: 18 | E44: 45718.75 | F44: 14.24 | G44: Valid | H44: 17.40625 | I44: 21 | J44: Valid | K44: 30.40583333 | N44: 14.24 | O44: 17.40625 | P44: 21 | Q44: 30.40583333 | R44: 21 | S44: 30.40583333 | T44: 14.24 | U44: 17.40625
A45: 2025 | B45: 3 | C45: 2 | D45: 19 | E45: 45718.79167 | F45: 11.99 | G45: Valid | H45: 16.98833333 | I45: 22.65 | J45: Valid | K45: 30.08583333 | N45: 11.99 | O45: 16.98833333 | P45: 22.65 | Q45: 30.08583333 | R45: 22.65 | S45: 30.08583333 | T45: 11.99 | U45: 16.98833333
A46: 2025 | B46: 3 | C46: 2 | D46: 20 | E46: 45718.83333 | F46: 12.22 | G46: Valid | H46: 16.61791667 | I46: 20.4 | J46: Valid | K46: 29.86166667 | N46: 12.22 | O46: 16.61791667 | P46: 20.4 | Q46: 29.86166667 | R46: 20.4 | S46: 29.86166667 | T46: 12.22 | U46: 16.61791667
A47: 2025 | B47: 3 | C47: 2 | D47: 21 | E47: 45718.875 | F47: 14.61 | G47: Valid | H47: 16.32458333 | I47: 26.36 | J47: Valid | K47: 29.70708333 | N47: 14.61 | O47: 16.32458333 | P47: 26.36 | Q47: 29.70708333 | R47: 26.36 | S47: 29.70708333 | T47: 14.61 | U47: 16.32458333
A48: 2025 | B48: 3 | C48: 2 | D48: 22 | E48: 45718.91667 | F48: 16.5 | G48: Valid | H48: 16.48125 | I48: 23.04 | J48: Valid | K48: 29.84291667 | N48: 16.5 | O48: 16.48125 | P48: 23.04 | Q48: 29.84291667 | R48: 23.04 | S48: 29.84291667 | T48: 16.5 | U48: 16.48125
A49: 2025 | B49: 3 | C49: 2 | D49: 23 | E49: 45718.95833 | F49: 8.39 | G49: Valid | H49: 16.21791667 | I49: 14.4 | J49: Valid | K49: 29.4425 | N49: 8.39 | O49: 16.21791667 | P49: 14.4 | Q49: 29.4425 | R49: 14.4 | S49: 29.4425 | T49: 8.39 | U49: 16.21791667
A50: 2025 | B50: 3 | C50: 3 | D50: 0 | E50: 45719 | F50: 12.45 | G50: Valid | H50: 16.07208333 | I50: 18.06 | J50: Valid | K50: 29.29625 | N50: 12.45 | O50: 16.07208333 | P50: 18.06 | Q50: 29.29625 | R50: 18.06 | S50: 29.29625 | T50: 12.45 | U50: 16.07208333
A51: 2025 | B51: 3 | C51: 3 | D51: 1 | E51: 45719.04167 | F51: 19.11 | G51: Valid | H51: 16.43958333 | I51: 29.37 | J51: Valid | K51: 29.89375 | N51: 19.11 | O51: 16.43958333 | P51: 29.37 | Q51: 29.89375 | R51: 29.37 | S51: 29.89375 | T51: 19.11 | U51: 16.43958333
A52: 2025 | B52: 3 | C52: 3 | D52: 2 | E52: 45719.08333 | F52: 30.13 | G52: Valid | H52: 17.08458333 | I52: 40.16 | J52: Valid | K52: 30.7575 | N52: 30.13 | O52: 17.08458333 | P52: 40.16 | Q52: 30.7575 | R52: 40.16 | S52: 30.7575 | T52: 30.13 | U52: 17.08458333
A53: 2025 | B53: 3 | C53: 3 | D53: 3 | E53: 45719.125 | F53: 30.08 | G53: Valid | H53: 17.74583333 | I53: 36.35 | J53: Valid | K53: 31.4725 | N53: 30.08 | O53: 17.74583333 | P53: 36.35 | Q53: 31.4725 | R53: 36.35 | S53: 31.4725 | T53: 30.08 | U53: 17.74583333
A54: 2025 | B54: 3 | C54: 3 | D54: 4 | E54: 45719.16667 | F54: 27.6 | G54: Valid | H54: 18.36791667 | I54: 32.53 | J54: Valid | K54: 31.97958333 | N54: 27.6 | O54: 18.36791667 | P54: 32.53 | Q54: 31.97958333 | R54: 32.53 | S54: 31.97958333 | T54: 27.6 | U54: 18.36791667
A55: 2025 | B55: 3 | C55: 3 | D55: 5 | E55: 45719.20833 | F55: 23.2 | G55: Valid | H55: 18.71625 | I55: 27.55 | J55: Valid | K55: 32.17791667 | N55: 23.2 | O55: 18.71625 | P55: 27.55 | Q55: 32.17791667 | R55: 27.55 | S55: 32.17791667 | T55: 23.2 | U55: 18.71625
A56: 2025 | B56: 3 | C56: 3 | D56: 6 | E56: 45719.25 | F56: 22.24 | G56: Valid | H56: 18.60708333 | I56: 27.54 | J56: Valid | K56: 30.59125 | N56: 22.24 | O56: 18.60708333 | P56: 27.54 | Q56: 30.59125 | R56: 27.54 | S56: 30.59125 | T56: 22.24 | U56: 18.60708333
A57: 2025 | B57: 3 | C57: 3 | D57: 7 | E57: 45719.29167 | F57: 21.8 | G57: Valid | H57: 18.395 | I57: 26.09 | J57: Valid | K57: 28.58208333 | N57: 21.8 | O57: 18.395 | P57: 26.09 | Q57: 28.58208333 | R57: 26.09 | S57: 28.58208333 | T57: 21.8 | U57: 18.395
A58: 2025 | B58: 3 | C58: 3 | D58: 8 | E58: 45719.33333 | F58: 20.57 | G58: Valid | H58: 18.19208333 | I58: 25.07 | J58: Valid | K58: 26.59291667 | N58: 20.57 | O58: 18.19208333 | P58: 25.07 | Q58: 26.59291667 | R58: 25.07 | S58: 26.59291667 | T58: 20.57 | U58: 18.19208333
A59: 2025 | B59: 3 | C59: 3 | D59: 9 | E59: 45719.375 | F59: 17.89 | G59: Valid | H59: 18.31208333 | I59: 23.51 | J59: Valid | K59: 26.32875 | N59: 17.89 | O59: 18.31208333 | P59: 23.51 | Q59: 26.32875 | R59: 23.51 | S59: 26.32875 | T59: 17.89 | U59: 18.31208333
A60: 2025 | B60: 3 | C60: 3 | D60: 10 | E60: 45719.41667 | F60: 14.36 | G60: Valid | H60: 18.1525 | I60: 19.74 | J60: Valid | K60: 26.07875 | N60: 14.36 | O60: 18.1525 | P60: 19.74 | Q60: 26.07875 | R60: 19.74 | S60: 26.07875 | T60: 14.36 | U60: 18.1525
A61: 2025 | B61: 3 | C61: 3 | D61: 11 | E61: 45719.45833 | F61: 14.17 | G61: Valid | H61: 18.04666667 | I61: 20.13 | J61: Valid | K61: 25.75875 | N61: 14.17 | O61: 18.04666667 | P61: 20.13 | Q61: 25.75875 | R61: 20.13 | S61: 25.75875 | T61: 14.17 | U61: 18.04666667
A62: 2025 | B62: 3 | C62: 3 | D62: 12 | E62: 45719.5 | F62: 12.32 | G62: Valid | H62: 18.00375 | I62: 18.64 | J62: Valid | K62: 25.66041667 | N62: 12.32 | O62: 18.00375 | P62: 18.64 | Q62: 25.66041667 | R62: 18.64 | S62: 25.66041667 | T62: 12.32 | U62: 18.00375
A63: 2025 | B63: 3 | C63: 3 | D63: 13 | E63: 45719.54167 | F63: 8.72 | G63: Valid | H63: 17.69791667 | I63: 18.48 | J63: Valid | K63: 25.46291667 | N63: 8.72 | O63: 17.69791667 | P63: 18.48 | Q63: 25.46291667 | R63: 18.48 | S63: 25.46291667 | T63: 8.72 | U63: 17.69791667
A64: 2025 | B64: 3 | C64: 3 | D64: 14 | E64: 45719.58333 | F64: 5.44 | G64: Valid | H64: 17.3 | I64: 13.52 | J64: Valid | K64: 25.04875 | N64: 5.44 | O64: 17.3 | P64: 13.52 | Q64: 25.04875 | R64: 13.52 | S64: 25.04875 | T64: 5.44 | U64: 17.3
A65: 2025 | B65: 3 | C65: 3 | D65: 15 | E65: 45719.625 | F65: 12.03 | G65: Valid | H65: 17.07458333 | I65: 31.88 | J65: Valid | K65: 25.15583333 | N65: 12.03 | O65: 17.07458333 | P65: 31.88 | Q65: 25.15583333 | R65: 31.88 | S65: 25.15583333 | T65: 12.03 | U65: 17.07458333
A66: 2025 | B66: 3 | C66: 3 | D66: 16 | E66: 45719.66667 | F66: 8.88 | G66: Valid | H66: 16.62333333 | I66: 15.33 | J66: Valid | K66: 24.54958333 | N66: =IF(G66="Valid", F66, NA()) -> 8.88 | O66: =IF(G66="Valid", H66, NA()) -> 16.62333333 | P66: =IF(J66="Valid", I66, NA()) -> 15.33 | Q66: =IF(J66="Valid", K66, NA()) -> 24.54958333 | R66: 15.33 | S66: 24.54958333 | T66: 8.88 | U66: 16.62333333
A67: 2025 | B67: 3 | C67: 3 | D67: 17 | E67: 45719.70833 | F67: 14.92 | G67: Valid | H67: 16.41083333 | I67: 25.79 | J67: Valid | K67: 24.06625 | N67: 14.92 | O67: 16.41083333 | P67: 25.79 | Q67: 24.06625 | R67: 25.79 | S67: 24.06625 | T67: 14.92 | U67: 16.41083333
A68: 2025 | B68: 3 | C68: 3 | D68: =IF(D67=23,0,D67+1) -> 18 | E68: =E67+0.0416666666666666 -> 45719.75 | F68: 15.07 | G68: Valid | H68: 16.44541667 | I68: 30.83 | J68: Valid | K68: 24.47583333 | N68: 15.07 | O68: 16.44541667 | P68: 30.83 | Q68: 24.47583333 | R68: 30.83 | S68: 24.47583333 | T68: 15.07 | U68: 16.44541667
A69: 2025 | B69: 3 | C69: 3 | D69: 19 | E69: 45719.79167 | F69: 12.45 | G69: Valid | H69: 16.46458333 | I69: 27 | J69: Valid | K69: 24.65708333 | N69: 12.45 | O69: 16.46458333 | P69: 27 | Q69: 24.65708333 | R69: 27 | S69: 24.65708333 | T69: 12.45 | U69: 16.46458333
A70: 2025 | B70: 3 | C70: 3 | D70: 20 | E70: 45719.83333 | F70: 13.02 | G70: Valid | H70: 16.49791667 | I70: 28 | J70: Valid | K70: 24.97375 | N70: 13.02 | O70: 16.49791667 | P70: 28 | Q70: 24.97375 | R70: 28 | S70: 24.97375 | T70: 13.02 | U70: 16.49791667
A71: 2025 | B71: 3 | C71: 3 | D71: 21 | E71: 45719.875 | F71: 13.2 | G71: Valid | H71: 16.43916667 | I71: 21.82 | J71: Valid | K71: 24.78458333 | N71: 13.2 | O71: 16.43916667 | P71: 21.82 | Q71: 24.78458333 | R71: 21.82 | S71: 24.78458333 | T71: 13.2 | U71: 16.43916667
A72: 2025 | B72: 3 | C72: 3 | D72: 22 | E72: 45719.91667 | F72: 15 | G72: Valid | H72: 16.37666667 | I72: 19.4 | J72: Valid | K72: 24.63291667 | N72: 15 | O72: 16.37666667 | P72: 19.4 | Q72: 24.63291667 | R72: 19.4 | S72: 24.63291667 | T72: 15 | U72: 16.37666667
A73: 2025 | B73: 3 | C73: 3 | D73: 23 | E73: 45719.95833 | F73: 15.01 | G73: Valid | H73: 16.6525 | I73: 18.38 | J73: Valid | K73: 24.79875 | N73: 15.01 | O73: 16.6525 | P73: 18.38 | Q73: 24.79875 | R73: 18.38 | S73: 24.79875 | T73: 15.01 | U73: 16.6525
A74: 2025 | B74: 3 | C74: 4 | D74: 0 | E74: 45720 | F74: 13.47 | G74: Valid | H74: 16.695 | I74: 16.09 | J74: Valid | K74: 24.71666667 | N74: 13.47 | O74: 16.695 | P74: 16.09 | Q74: 24.71666667 | R74: 16.09 | S74: 24.71666667 | T74: 13.47 | U74: 16.695
A75: 2025 | B75: 3 | C75: 4 | D75: 1 | E75: 45720.04167 | F75: 10.73 | G75: Valid | H75: 16.34583333 | I75: 13.48 | J75: Valid | K75: 24.05458333 | N75: 10.73 | O75: 16.34583333 | P75: 13.48 | Q75: 24.05458333 | R75: 13.48 | S75: 24.05458333 | T75: 10.73 | U75: 16.34583333
A76: 2025 | B76: 3 | C76: 4 | D76: 2 | E76: 45720.08333 | F76: 10.39 | G76: Valid | H76: 15.52333333 | I76: 10.76 | J76: Valid | K76: 22.82958333 | N76: 10.39 | O76: 15.52333333 | P76: 10.76 | Q76: 22.82958333 | R76: 10.76 | S76: 22.82958333 | T76: 10.39 | U76: 15.52333333
A77: 2025 | B77: 3 | C77: 4 | D77: 3 | E77: 45720.125 | F77: 12.07 | G77: Valid | H77: 14.77291667 | I77: 12.44 | J77: Valid | K77: 21.83333333 | N77: 12.07 | O77: 14.77291667 | P77: 12.44 | Q77: 21.83333333 | R77: 12.44 | S77: 21.83333333 | T77: 12.07 | U77: 14.77291667
A78: 2025 | B78: 3 | C78: 4 | D78: 4 | E78: 45720.16667 | F78: 9.98 | G78: Valid | H78: 14.03875 | I78: 11.09 | J78: Valid | K78: 20.94 | N78: 9.98 | O78: 14.03875 | P78: 11.09 | Q78: 20.94 | R78: 11.09 | S78: 20.94 | T78: 9.98 | U78: 14.03875
A79: 2025 | B79: 3 | C79: 4 | D79: 5 | E79: 45720.20833 | F79: 10.32 | G79: Valid | H79: 13.50208333 | I79: 10.5 | J79: Valid | K79: 20.22958333 | N79: 10.32 | O79: 13.50208333 | P79: 10.5 | Q79: 20.22958333 | R79: 10.5 | S79: 20.22958333 | T79: 10.32 | U79: 13.50208333
A80: 2025 | B80: 3 | C80: 4 | D80: 6 | E80: 45720.25 | F80: 14.32 | G80: Valid | H80: 13.17208333 | I80: 20.7 | J80: Valid | K80: 19.94458333 | N80: 14.32 | O80: 13.17208333 | P80: 20.7 | Q80: 19.94458333 | R80: 20.7 | S80: 19.94458333 | T80: 14.32 | U80: 13.17208333
A81: 2025 | B81: 3 | C81: 4 | D81: 7 | E81: 45720.29167 | F81: 8.86 | G81: Valid | H81: 12.63291667 | I81: 11.94 | J81: Valid | K81: 19.355 | N81: 8.86 | O81: 12.63291667 | P81: 11.94 | Q81: 19.355 | R81: 11.94 | S81: 19.355 | T81: 8.86 | U81: 12.63291667
A82: 2025 | B82: 3 | C82: 4 | D82: 8 | E82: 45720.33333 | F82: 10.57 | G82: Valid | H82: 12.21625 | I82: 12.4 | J82: Valid | K82: 18.82708333 | N82: 10.57 | O82: 12.21625 | P82: 12.4 | Q82: 18.82708333 | R82: 12.4 | S82: 18.82708333 | T82: 10.57 | U82: 12.21625
A83: 2025 | B83: 3 | C83: 4 | D83: 9 | E83: 45720.375 | F83: 12.57 | G83: Valid | H83: 11.99458333 | I83: 17.28 | J83: Valid | K83: 18.5675 | N83: 12.57 | O83: 11.99458333 | P83: 17.28 | Q83: 18.5675 | R83: 17.28 | S83: 18.5675 | T83: 12.57 | U83: 11.99458333
A84: 2025 | B84: 3 | C84: 4 | D84: 10 | E84: 45720.41667 | F84: 8.93 | G84: Valid | H84: 11.76833333 | I84: 13.9 | J84: Valid | K84: 18.32416667 | N84: 8.93 | O84: 11.76833333 | P84: 13.9 | Q84: 18.32416667 | R84: 13.9 | S84: 18.32416667 | T84: 8.93 | U84: 11.76833333
A85: 2025 | B85: 3 | C85: 4 | D85: 11 | E85: 45720.45833 | F85: 8.42 | G85: Valid | H85: 11.52875 | I85: 16.98 | J85: Valid | K85: 18.19291667 | N85: 8.42 | O85: 11.52875 | P85: 16.98 | Q85: 18.19291667 | R85: 16.98 | S85: 18.19291667 | T85: 8.42 | U85: 11.52875
A86: 2025 | B86: 3 | C86: 4 | D86: 12 | E86: 45720.5 | F86: 9.73 | G86: Valid | H86: 11.42083333 | I86: 17.39 | J86: Valid | K86: 18.14083333 | N86: 9.73 | O86: 11.42083333 | P86: 17.39 | Q86: 18.14083333 | R86: 17.39 | S86: 18.14083333 | T86: 9.73 | U86: 11.42083333
A87: 2025 | B87: 3 | C87: 4 | D87: 13 | E87: 45720.54167 | F87: 9.89 | G87: Valid | H87: 11.46958333 | I87: 19.05 | J87: Valid | K87: 18.16458333 | N87: 9.89 | O87: 11.46958333 | P87: 19.05 | Q87: 18.16458333 | R87: 19.05 | S87: 18.16458333 | T87: 9.89 | U87: 11.46958333
A88: 2025 | B88: 3 | C88: 4 | D88: 14 | E88: 45720.58333 | F88: 14.17 | G88: Valid | H88: 11.83333333 | I88: 32.69 | J88: Valid | K88: 18.96333333 | N88: 14.17 | O88: 11.83333333 | P88: 32.69 | Q88: 18.96333333 | R88: 32.69 | S88: 18.96333333 | T88: 14.17 | U88: 11.83333333
A89: 2025 | B89: 3 | C89: 4 | D89: 15 | E89: 45720.625 | F89: 10.23 | G89: Valid | H89: 11.75833333 | I89: 16.71 | J89: Valid | K89: 18.33125 | N89: 10.23 | O89: 11.75833333 | P89: 16.71 | Q89: 18.33125 | R89: 16.71 | S89: 18.33125 | T89: 10.23 | U89: 11.75833333
A90: 2025 | B90: 3 | C90: 4 | D90: 16 | E90: 45720.66667 | F90: 7.92 | G90: Valid | H90: 11.71833333 | I90: 14.75 | J90: Valid | K90: 18.30708333 | N90: 7.92 | O90: 11.71833333 | P90: 14.75 | Q90: 18.30708333 | R90: 14.75 | S90: 18.30708333 | T90: 7.92 | U90: 11.71833333
A91: 2025 | B91: 3 | C91: =C67+1 -> 4 | D91: 17 | E91: 45720.70833 | F91: 11.31 | G91: Valid | H91: 11.56791667 | I91: 27.76 | J91: Valid | K91: 18.38916667 | N91: 11.31 | O91: 11.56791667 | P91: 27.76 | Q91: 18.38916667 | R91: 27.76 | S91: 18.38916667 | T91: 11.31 | U91: 11.56791667
A92: 2025 | B92: 3 | C92: 4 | D92: 18 | E92: 45720.75 | F92: 12.75 | G92: Valid | H92: 11.47125 | I92: 27.54 | J92: Valid | K92: 18.25208333 | N92: 12.75 | O92: 11.47125 | P92: 27.54 | Q92: 18.25208333 | R92: 27.54 | S92: 18.25208333 | T92: 12.75 | U92: 11.47125
A93: 2025 | B93: 3 | C93: 4 | D93: 19 | E93: 45720.79167 | F93: 10.74 | G93: Valid | H93: 11.4 | I93: 22.02 | J93: Valid | K93: 18.04458333 | N93: 10.74 | O93: 11.4 | P93: 22.02 | Q93: 18.04458333 | R93: 22.02 | S93: 18.04458333 | T93: 10.74 | U93: 11.4
A94: 2025 | B94: 3 | C94: 4 | D94: 20 | E94: 45720.83333 | F94: 8.64 | G94: Valid | H94: 11.2175 | I94: 13.42 | J94: Valid | K94: 17.43708333 | N94: 8.64 | O94: 11.2175 | P94: 13.42 | Q94: 17.43708333 | R94: 13.42 | S94: 17.43708333 | T94: 8.64 | U94: 11.2175
A95: 2025 | B95: 3 | C95: 4 | D95: 21 | E95: 45720.875 | F95: 7.92 | G95: Valid | H95: 10.9975 | I95: 12.34 | J95: Valid | K95: 17.04208333 | N95: 7.92 | O95: 10.9975 | P95: 12.34 | Q95: 17.04208333 | R95: 12.34 | S95: 17.04208333 | T95: 7.92 | U95: 10.9975
A96: 2025 | B96: 3 | C96: 4 | D96: 22 | E96: 45720.91667 | F96: 11.32 | G96: Valid | H96: 10.84416667 | I96: 14.15 | J96: Valid | K96: 16.82333333 | N96: 11.32 | O96: 10.84416667 | P96: 14.15 | Q96: 16.82333333 | R96: 14.15 | S96: 16.82333333 | T96: 11.32 | U96: 10.84416667
A97: 2025 | B97: 3 | C97: 4 | D97: 23 | E97: 45720.95833 | F97: 9.68 | G97: Valid | H97: 10.62208333 | I97: 11.19 | J97: Valid | K97: 16.52375 | N97: 9.68 | O97: 10.62208333 | P97: 11.19 | Q97: 16.52375 | R97: 11.19 | S97: 16.52375 | T97: 9.68 | U97: 10.62208333
A98: 2025 | B98: 3 | C98: 5 | D98: 0 | E98: 45721 | F98: 6.29 | G98: Valid | H98: 10.32291667 | I98: 8.19 | J98: Valid | K98: 16.19458333 | N98: 6.29 | O98: 10.32291667 | P98: 8.19 | Q98: 16.19458333 | R98: 8.19 | S98: 16.19458333 | T98: 6.29 | U98: 10.32291667
A99: 2025 | B99: 3 | C99: 5 | D99: 1 | E99: 45721.04167 | F99: 7 | G99: Valid | H99: 10.1675 | I99: 9.78 | J99: Valid | K99: 16.04041667 | N99: 7 | O99: 10.1675 | P99: 9.78 | Q99: 16.04041667 | R99: 9.78 | S99: 16.04041667 | T99: 7 | U99: 10.1675
A100: 2025 | B100: 3 | C100: 5 | D100: 2 | E100: 45721.08333 | F100: 10.64 | G100: Valid | H100: 10.17791667 | I100: 13.99 | J100: Valid | K100: 16.175 | N100: 10.64 | O100: 10.17791667 | P100: 13.99 | Q100: 16.175 | R100: 13.99 | S100: 16.175 | T100: 10.64 | U100: 10.17791667
A101: 2025 | B101: 3 | C101: 5 | D101: 3 | E101: 45721.125 | F101: 6.24 | G101: Valid | H101: 9.935 | I101: 7.49 | J101: Valid | K101: 15.96875 | N101: 6.24 | O101: 9.935 | P101: 7.49 | Q101: 15.96875 | R101: 7.49 | S101: 15.96875 | T101: 6.24 | U101: 9.935
A102: 2025 | B102: 3 | C102: 5 | D102: 4 | E102: 45721.16667 | F102: 10.62 | G102: Valid | H102: 9.961666667 | I102: 12.16 | J102: Valid | K102: 16.01333333 | N102: 10.62 | O102: 9.961666667 | P102: 12.16 | Q102: 16.01333333 | R102: 12.16 | S102: 16.01333333 | T102: 10.62 | U102: 9.961666667
A103: 2025 | B103: 3 | C103: 5 | D103: 5 | E103: 45721.20833 | F103: 8.04 | G103: Valid | H103: 9.866666667 | I103: 9.46 | J103: Valid | K103: 15.97 | N103: 8.04 | O103: 9.866666667 | P103: 9.46 | Q103: 15.97 | R103: 9.46 | S103: 15.97 | T103: 8.04 | U103: 9.866666667
A104: 2025 | B104: 3 | C104: 5 | D104: 6 | E104: 45721.25 | F104: 10.21 | G104: Valid | H104: 9.695416667 | I104: 16.75 | J104: Valid | K104: 15.80541667 | N104: 10.21 | O104: 9.695416667 | P104: 16.75 | Q104: 15.80541667 | R104: 16.75 | S104: 15.80541667 | T104: 10.21 | U104: 9.695416667
A105: 2025 | B105: 3 | C105: 5 | D105: 7 | E105: 45721.29167 | F105: 16.86 | G105: Valid | H105: 10.02875 | I105: 26.79 | J105: Valid | K105: 16.42416667 | N105: 16.86 | O105: 10.02875 | P105: 26.79 | Q105: 16.42416667 | R105: 26.79 | S105: 16.42416667 | T105: 16.86 | U105: 10.02875
A106: 2025 | B106: 3 | C106: 5 | D106: 8 | E106: 45721.33333 | F106: 11.04 | G106: Valid | H106: 10.04833333 | I106: 13.57 | J106: Valid | K106: 16.47291667 | N106: 11.04 | O106: 10.04833333 | P106: 13.57 | Q106: 16.47291667 | R106: 13.57 | S106: 16.47291667 | T106: 11.04 | U106: 10.04833333
A107: 2025 | B107: 3 | C107: 5 | D107: 9 | E107: 45721.375 | F107: 8.86 | G107: Valid | H107: 9.89375 | I107: 12.57 | J107: Valid | K107: 16.27666667 | N107: 8.86 | O107: 9.89375 | P107: 12.57 | Q107: 16.27666667 | R107: 12.57 | S107: 16.27666667 | T107: 8.86 | U107: 9.89375
A108: 2025 | B108: 3 | C108: 5 | D108: 10 | E108: 45721.41667 | F108: 12.54 | G108: Valid | H108: 10.04416667 | I108: 15.1 | J108: Valid | K108: 16.32666667 | N108: 12.54 | O108: 10.04416667 | P108: 15.1 | Q108: 16.32666667 | R108: 15.1 | S108: 16.32666667 | T108: 12.54 | U108: 10.04416667
A109: 2025 | B109: 3 | C109: 5 | D109: 11 | E109: 45721.45833 | F109: 6.72 | G109: Valid | H109: 9.973333333 | I109: 11.66 | J109: Valid | K109: 16.105 | N109: 6.72 | O109: 9.973333333 | P109: 11.66 | Q109: 16.105 | R109: 11.66 | S109: 16.105 | T109: 6.72 | U109: 9.973333333
A110: 2025 | B110: 3 | C110: 5 | D110: 12 | E110: 45721.5 | F110: 4.85 | G110: Valid | H110: 9.77 | I110: 12.84 | J110: Valid | K110: 15.91541667 | N110: 4.85 | O110: 9.77 | P110: 12.84 | Q110: 15.91541667 | R110: 12.84 | S110: 15.91541667 | T110: 4.85 | U110: 9.77
A111: 2025 | B111: 3 | C111: 5 | D111: 13 | E111: 45721.54167 | F111: 6.96 | G111: Valid | H111: 9.647916667 | I111: 14.65 | J111: Valid | K111: 15.73208333 | N111: 6.96 | O111: 9.647916667 | P111: 14.65 | Q111: 15.73208333 | R111: 14.65 | S111: 15.73208333 | T111: 6.96 | U111: 9.647916667
A112: 2025 | B112: 3 | C112: 5 | D112: 14 | E112: 45721.58333 | F112: 9.84 | G112: Valid | H112: 9.4675 | I112: 17.76 | J112: Valid | K112: 15.11 | N112: 9.84 | O112: 9.4675 | P112: 17.76 | Q112: 15.11 | R112: 17.76 | S112: 15.11 | T112: 9.84 | U112: 9.4675
A113: 2025 | B113: 3 | C113: 5 | D113: 15 | E113: 45721.625 | F113: 14.36 | G113: Valid | H113: 9.639583333 | I113: 26.93 | J113: Valid | K113: 15.53583333 | N113: 14.36 | O113: 9.639583333 | P113: 26.93 | Q113: 15.53583333 | R113: 26.93 | S113: 15.53583333 | T113: 14.36 | U113: 9.639583333
A114: 2025 | B114: 3 | C114: 5 | D114: 16 | E114: 45721.66667 | F114: 13.24 | G114: Valid | H114: 9.86125 | I114: 23.35 | J114: Valid | K114: 15.89416667 | N114: 13.24 | O114: 9.86125 | P114: 23.35 | Q114: 15.89416667 | R114: 23.35 | S114: 15.89416667 | T114: 13.24 | U114: 9.86125
A115: 2025 | B115: 3 | C115: 5 | D115: 17 | E115: 45721.70833 | F115: 10.15 | G115: Valid | H115: 9.812916667 | I115: 24.19 | J115: Valid | K115: 15.74541667 | N115: 10.15 | O115: 9.812916667 | P115: 24.19 | Q115: 15.74541667 | R115: 24.19 | S115: 15.74541667 | T115: 10.15 | U115: 9.812916667
A116: 2025 | B116: 3 | C116: 5 | D116: 18 | E116: 45721.75 | F116: 9.72 | G116: Valid | H116: 9.686666667 | I116: 21.22 | J116: Valid | K116: 15.48208333 | N116: 9.72 | O116: 9.686666667 | P116: 21.22 | Q116: 15.48208333 | R116: 21.22 | S116: 15.48208333 | T116: 9.72 | U116: 9.686666667
A117: 2025 | B117: 3 | C117: 5 | D117: 19 | E117: 45721.79167 | F117: 12.85 | G117: Valid | H117: 9.774583333 | I117: 20.44 | J117: Valid | K117: 15.41625 | N117: 12.85 | O117: 9.774583333 | P117: 20.44 | Q117: 15.41625 | R117: 20.44 | S117: 15.41625 | T117: 12.85 | U117: 9.774583333
A118: 2025 | B118: 3 | C118: 5 | D118: 20 | E118: 45721.83333 | F118: 9.2 | G118: Valid | H118: 9.797916667 | I118: 16.08 | J118: Valid | K118: 15.52708333 | N118: 9.2 | O118: 9.797916667 | P118: 16.08 | Q118: 15.52708333 | R118: 16.08 | S118: 15.52708333 | T118: 9.2 | U118: 9.797916667
A119: 2025 | B119: 3 | C119: 5 | D119: 21 | E119: 45721.875 | F119: 10.77 | G119: Valid | H119: 9.916666667 | I119: 13.7 | J119: Valid | K119: 15.58375 | N119: 10.77 | O119: 9.916666667 | P119: 13.7 | Q119: 15.58375 | R119: 13.7 | S119: 15.58375 | T119: 10.77 | U119: 9.916666667
A120: 2025 | B120: 3 | C120: 5 | D120: 22 | E120: 45721.91667 | F120: 6.19 | G120: Valid | H120: 9.702916667 | I120: 8.64 | J120: Valid | K120: 15.35416667 | N120: 6.19 | O120: 9.702916667 | P120: 8.64 | Q120: 15.35416667 | R120: 8.64 | S120: 15.35416667 | T120: 6.19 | U120: 9.702916667
A121: 2025 | B121: 3 | C121: 5 | D121: 23 | E121: 45721.95833 | F121: 10.5 | G121: Valid | H121: 9.737083333 | I121: 12.01 | J121: Valid | K121: 15.38833333 | N121: 10.5 | O121: 9.737083333 | P121: 12.01 | Q121: 15.38833333 | R121: 12.01 | S121: 15.38833333 | T121: 10.5 | U121: 9.737083333
A122: 2025 | B122: 3 | C122: 6 | D122: 0 | E122: 45722 | F122: 10.62 | G122: Valid | H122: 9.9175 | I122: 11.75 | J122: Valid | K122: 15.53666667 | N122: 10.62 | O122: 9.9175 | P122: 11.75 | Q122: 15.53666667 | R122: 11.75 | S122: 15.53666667 | T122: 10.62 | U122: 9.9175
A123: 2025 | B123: 3 | C123: 6 | D123: 1 | E123: 45722.04167 | F123: 11.29 | G123: Valid | H123: 10.09625 | I123: 11.71 | J123: Valid | K123: 15.61708333 | N123: 11.29 | O123: 10.09625 | P123: 11.71 | Q123: 15.61708333 | R123: 11.71 | S123: 15.61708333 | T123: 11.29 | U123: 10.09625
A124: 2025 | B124: 3 | C124: 6 | D124: 2 | E124: 45722.08333 | F124: 10.22 | G124: Valid | H124: 10.07875 | I124: 12 | J124: Valid | K124: 15.53416667 | N124: 10.22 | O124: 10.07875 | P124: 12 | Q124: 15.53416667 | R124: 12 | S124: 15.53416667 | T124: 10.22 | U124: 10.07875
A125: 2025 | B125: 3 | C125: 6 | D125: 3 | E125: 45722.125 | F125: 13.48 | G125: Valid | H125: 10.38041667 | I125: 14.93 | J125: Valid | K125: 15.84416667 | N125: 13.48 | O125: 10.38041667 | P125: 14.93 | Q125: 15.84416667 | R125: 14.93 | S125: 15.84416667 | T125: 13.48 | U125: 10.38041667
A126: 2025 | B126: 3 | C126: 6 | D126: 4 | E126: 45722.16667 | F126: 13.9 | G126: Valid | H126: 10.51708333 | I126: 16.8 | J126: Valid | K126: 16.0375 | N126: 13.9 | O126: 10.51708333 | P126: 16.8 | Q126: 16.0375 | R126: 16.8 | S126: 16.0375 | T126: 13.9 | U126: 10.51708333
A127: 2025 | B127: 3 | C127: 6 | D127: 5 | E127: 45722.20833 | F127: 12.14 | G127: Valid | H127: 10.68791667 | I127: 19.42 | J127: Valid | K127: 16.4525 | N127: 12.14 | O127: 10.68791667 | P127: 19.42 | Q127: 16.4525 | R127: 19.42 | S127: 16.4525 | T127: 12.14 | U127: 10.68791667
A128: 2025 | B128: 3 | C128: 6 | D128: 6 | E128: 45722.25 | F128: 10.12 | G128: Valid | H128: 10.68416667 | I128: 17.46 | J128: Valid | K128: 16.48208333 | N128: 10.12 | O128: 10.68416667 | P128: 17.46 | Q128: 16.48208333 | R128: 17.46 | S128: 16.48208333 | T128: 10.12 | U128: 10.68416667
A129: 2025 | B129: 3 | C129: 6 | D129: 7 | E129: 45722.29167 | F129: 10.55 | G129: Valid | H129: 10.42125 | I129: 18.98 | J129: Valid | K129: 16.15666667 | N129: 10.55 | O129: 10.42125 | P129: 18.98 | Q129: 16.15666667 | R129: 18.98 | S129: 16.15666667 | T129: 10.55 | U129: 10.42125
A130: 2025 | B130: 3 | C130: 6 | D130: 8 | E130: 45722.33333 | F130: 11.52 | G130: Valid | H130: 10.44125 | I130: 18.43 | J130: Valid | K130: 16.35916667 | N130: =IF(G130="Valid", F130, NA()) -> 11.52 | O130: =IF(G130="Valid", H130, NA()) -> 10.44125 | P130: =IF(J130="Valid", I130, NA()) -> 18.43 | Q130: =IF(J130="Valid", K130, NA()) -> 16.35916667 | R130: 18.43 | S130: 16.35916667 | T130: 11.52 | U130: 10.44125
A131: 2025 | B131: 3 | C131: 6 | D131: 9 | E131: 45722.375 | F131: 10.83 | G131: Valid | H131: 10.52333333 | I131: 14.86 | J131: Valid | K131: 16.45458333 | N131: 10.83 | O131: 10.52333333 | P131: 14.86 | Q131: 16.45458333 | R131: 14.86 | S131: 16.45458333 | T131: 10.83 | U131: 10.52333333
A132: 2025 | B132: 3 | C132: 6 | D132: =IF(D131=23,0,D131+1) -> 10 | E132: =E131+0.0416666666666666 -> 45722.41667 | F132: 15.64 | G132: Valid | H132: 10.6525 | I132: 20.81 | J132: Valid | K132: 16.6925 | N132: 15.64 | O132: 10.6525 | P132: 20.81 | Q132: 16.6925 | R132: 20.81 | S132: 16.6925 | T132: 15.64 | U132: 10.6525
A133: 2025 | B133: 3 | C133: 6 | D133: 11 | E133: 45722.45833 | F133: 11.68 | G133: Valid | H133: 10.85916667 | I133: 18.67 | J133: Valid | K133: 16.98458333 | N133: 11.68 | O133: 10.85916667 | P133: 18.67 | Q133: 16.98458333 | R133: 18.67 | S133: 16.98458333 | T133: 11.68 | U133: 10.85916667
A134: 2025 | B134: 3 | C134: 6 | D134: 12 | E134: 45722.5 | F134: 8.88 | G134: Valid | H134: 11.02708333 | I134: 22.17 | J134: Valid | K134: 17.37333333 | N134: 8.88 | O134: 11.02708333 | P134: 22.17 | Q134: 17.37333333 | R134: 22.17 | S134: 17.37333333 | T134: 8.88 | U134: 11.02708333
A135: 2025 | B135: 3 | C135: 6 | D135: 13 | E135: 45722.54167 | F135: 9.7 | G135: Valid | H135: 11.14125 | I135: 19.26 | J135: Valid | K135: 17.56541667 | N135: 9.7 | O135: 11.14125 | P135: 19.26 | Q135: 17.56541667 | R135: 19.26 | S135: 17.56541667 | T135: 9.7 | U135: 11.14125
A136: 2025 | B136: 3 | C136: 6 | D136: 14 | E136: 45722.58333 | F136: 7.71 | G136: Valid | H136: 11.0525 | I136: 16.03 | J136: Valid | K136: 17.49333333 | N136: 7.71 | O136: 11.0525 | P136: 16.03 | Q136: 17.49333333 | R136: 16.03 | S136: 17.49333333 | T136: 7.71 | U136: 11.0525
A137: 2025 | B137: 3 | C137: 6 | D137: 15 | E137: 45722.625 | F137: 9.12 | G137: Valid | H137: 10.83416667 | I137: 19.33 | J137: Valid | K137: 17.17666667 | N137: 9.12 | O137: 10.83416667 | P137: 19.33 | Q137: 17.17666667 | R137: 19.33 | S137: 17.17666667 | T137: 9.12 | U137: 10.83416667
A138: 2025 | B138: 3 | C138: 6 | D138: 16 | E138: 45722.66667 | F138: 9.24 | G138: Valid | H138: 10.6675 | I138: 18.57 | J138: Valid | K138: 16.9775 | N138: 9.24 | O138: 10.6675 | P138: 18.57 | Q138: 16.9775 | R138: 18.57 | S138: 16.9775 | T138: 9.24 | U138: 10.6675
A139: 2025 | B139: 3 | C139: 6 | D139: 17 | E139: 45722.70833 | F139: 10.93 | G139: Valid | H139: 10.7 | I139: 29.57 | J139: Valid | K139: 17.20166667 | N139: 10.93 | O139: 10.7 | P139: 29.57 | Q139: 17.20166667 | R139: 29.57 | S139: 17.20166667 | T139: 10.93 | U139: 10.7
A140: 2025 | B140: 3 | C140: 6 | D140: 18 | E140: 45722.75 | F140: 10.91 | G140: Valid | H140: 10.74958333 | I140: 57.54 | J140: Valid | K140: 18.715 | N140: 10.91 | O140: 10.74958333 | P140: 57.54 | Q140: 18.715 | R140: 57.54 | S140: 18.715 | T140: 10.91 | U140: 10.74958333
A141: 2025 | B141: 3 | C141: 6 | D141: 19 | E141: 45722.79167 | F141: 9.84 | G141: Valid | H141: 10.62416667 | I141: 33.45 | J141: Valid | K141: 19.25708333 | N141: 9.84 | O141: 10.62416667 | P141: 33.45 | Q141: 19.25708333 | R141: 33.45 | S141: 19.25708333 | T141: 9.84 | U141: 10.62416667
A142: 2025 | B142: 3 | C142: 6 | D142: 20 | E142: 45722.83333 | F142: 12.36 | G142: Valid | H142: 10.75583333 | I142: 20.81 | J142: Valid | K142: 19.45416667 | N142: 12.36 | O142: 10.75583333 | P142: 20.81 | Q142: 19.45416667 | R142: 20.81 | S142: 19.45416667 | T142: 12.36 | U142: 10.75583333
A143: 2025 | B143: 3 | C143: 6 | D143: 21 | E143: 45722.875 | F143: 11.7 | G143: Valid | H143: 10.79458333 | I143: 16.21 | J143: Valid | K143: 19.55875 | N143: 11.7 | O143: 10.79458333 | P143: 16.21 | Q143: 19.55875 | R143: 16.21 | S143: 19.55875 | T143: 11.7 | U143: 10.79458333
A144: 2025 | B144: 3 | C144: 6 | D144: 22 | E144: 45722.91667 | F144: 10.4 | G144: Valid | H144: 10.97 | I144: 13.92 | J144: Valid | K144: 19.77875 | N144: 10.4 | O144: 10.97 | P144: 13.92 | Q144: 19.77875 | R144: 13.92 | S144: 19.77875 | T144: 10.4 | U144: 10.97
A145: 2025 | B145: 3 | C145: 6 | D145: 23 | E145: 45722.95833 | F145: 8.59 | G145: Valid | H145: 10.89041667 | I145: 10.46 | J145: Valid | K145: 19.71416667 | N145: 8.59 | O145: 10.89041667 | P145: 10.46 | Q145: 19.71416667 | R145: 10.46 | S145: 19.71416667 | T145: 8.59 | U145: 10.89041667
A146: 2025 | B146: 3 | C146: 7 | D146: 0 | E146: 45723 | F146: 9.62 | G146: Valid | H146: 10.84875 | I146: 10.59 | J146: Valid | K146: 19.66583333 | N146: 9.62 | O146: 10.84875 | P146: 10.59 | Q146: 19.66583333 | R146: 10.59 | S146: 19.66583333 | T146: 9.62 | U146: 10.84875
A147: 2025 | B147: 3 | C147: 7 | D147: 1 | E147: 45723.04167 | F147: 7.74 | G147: Valid | H147: 10.70083333 | I147: 8.13 | J147: Valid | K147: 19.51666667 | N147: 7.74 | O147: 10.70083333 | P147: 8.13 | Q147: 19.51666667 | R147: 8.13 | S147: 19.51666667 | T147: 7.74 | U147: 10.70083333
A148: 2025 | B148: 3 | C148: 7 | D148: 2 | E148: 45723.08333 | F148: 10.71 | G148: Valid | H148: 10.72125 | I148: 11.46 | J148: Valid | K148: 19.49416667 | N148: 10.71 | O148: 10.72125 | P148: 11.46 | Q148: 19.49416667 | R148: 11.46 | S148: 19.49416667 | T148: 10.71 | U148: 10.72125
A149: 2025 | B149: 3 | C149: 7 | D149: 3 | E149: 45723.125 | F149: 8.98 | G149: Valid | H149: 10.53375 | I149: 10.09 | J149: Valid | K149: 19.2925 | N149: 8.98 | O149: 10.53375 | P149: 10.09 | Q149: 19.2925 | R149: 10.09 | S149: 19.2925 | T149: 8.98 | U149: 10.53375
A150: 2025 | B150: 3 | C150: 7 | D150: 4 | E150: 45723.16667 | F150: 11.41 | G150: Valid | H150: 10.43 | I150: 12.81 | J150: Valid | K150: 19.12625 | N150: 11.41 | O150: 10.43 | P150: 12.81 | Q150: 19.12625 | R150: 12.81 | S150: 19.12625 | T150: 11.41 | U150: 10.43
A151: 2025 | B151: 3 | C151: 7 | D151: 5 | E151: 45723.20833 | F151: 12.54 | G151: Valid | H151: 10.44666667 | I151: 17.07 | J151: Valid | K151: 19.02833333 | N151: 12.54 | O151: 10.44666667 | P151: 17.07 | Q151: 19.02833333 | R151: 17.07 | S151: 19.02833333 | T151: 12.54 | U151: 10.44666667
A152: 2025 | B152: 3 | C152: 7 | D152: 6 | E152: 45723.25 | F152: 10.1 | G152: Valid | H152: 10.44583333 | I152: 13.99 | J152: Valid | K152: 18.88375 | N152: 10.1 | O152: 10.44583333 | P152: 13.99 | Q152: 18.88375 | R152: 13.99 | S152: 18.88375 | T152: 10.1 | U152: 10.44583333
A153: 2025 | B153: 3 | C153: 7 | D153: 7 | E153: 45723.29167 | F153: 13.8 | G153: Valid | H153: 10.58125 | I153: 18.85 | J153: Valid | K153: 18.87833333 | N153: 13.8 | O153: 10.58125 | P153: 18.85 | Q153: 18.87833333 | R153: 18.85 | S153: 18.87833333 | T153: 13.8 | U153: 10.58125
A154: 2025 | B154: 3 | C154: 7 | D154: 8 | E154: 45723.33333 | F154: 12.68 | G154: Valid | H154: 10.62958333 | I154: 17.66 | J154: Valid | K154: 18.84625 | N154: 12.68 | O154: 10.62958333 | P154: 17.66 | Q154: 18.84625 | R154: 17.66 | S154: 18.84625 | T154: 12.68 | U154: 10.62958333
A155: 2025 | B155: 3 | C155: =C131+1 -> 7 | D155: 9 | E155: 45723.375 | F155: 11.18 | G155: Valid | H155: 10.64416667 | I155: 16.24 | J155: Valid | K155: 18.90375 | N155: 11.18 | O155: 10.64416667 | P155: 16.24 | Q155: 18.90375 | R155: 16.24 | S155: 18.90375 | T155: 11.18 | U155: 10.64416667
A156: 2025 | B156: 3 | C156: 7 | D156: 10 | E156: 45723.41667 | F156: 13.08 | G156: Valid | H156: 10.5375 | I156: 17.3 | J156: Valid | K156: 18.7575 | N156: 13.08 | O156: 10.5375 | P156: 17.3 | Q156: 18.7575 | R156: 17.3 | S156: 18.7575 | T156: 13.08 | U156: 10.5375
A157: 2025 | B157: 3 | C157: 7 | D157: 11 | E157: 45723.45833 | F157: 8.91 | G157: Valid | H157: 10.42208333 | I157: 14.63 | J157: Valid | K157: 18.58916667 | N157: 8.91 | O157: 10.42208333 | P157: 14.63 | Q157: 18.58916667 | R157: 14.63 | S157: 18.58916667 | T157: 8.91 | U157: 10.42208333
A158: 2025 | B158: 3 | C158: 7 | D158: 12 | E158: 45723.5 | F158: 12.02 | G158: Valid | H158: 10.55291667 | I158: 16.7 | J158: Valid | K158: 18.36125 | N158: 12.02 | O158: 10.55291667 | P158: 16.7 | Q158: 18.36125 | R158: 16.7 | S158: 18.36125 | T158: 12.02 | U158: 10.55291667
A159: 2025 | B159: 3 | C159: 7 | D159: 13 | E159: 45723.54167 | F159: 9.87 | G159: Valid | H159: 10.56 | I159: 15.83 | J159: Valid | K159: 18.21833333 | N159: 9.87 | O159: 10.56 | P159: 15.83 | Q159: 18.21833333 | R159: 15.83 | S159: 18.21833333 | T159: 9.87 | U159: 10.56
A160: 2025 | B160: 3 | C160: 7 | D160: 14 | E160: 45723.58333 | F160: 7.78 | G160: Valid | H160: 10.56291667 | I160: 17.12 | J160: Valid | K160: 18.26375 | N160: 7.78 | O160: 10.56291667 | P160: 17.12 | Q160: 18.26375 | R160: 17.12 | S160: 18.26375 | T160: 7.78 | U160: 10.56291667
A161: 2025 | B161: 3 | C161: 7 | D161: 15 | E161: 45723.625 | F161: 6.75 | G161: Valid | H161: 10.46416667 | I161: 16.25 | J161: Valid | K161: 18.13541667 | N161: 6.75 | O161: 10.46416667 | P161: 16.25 | Q161: 18.13541667 | R161: 16.25 | S161: 18.13541667 | T161: 6.75 | U161: 10.46416667
A162: 2025 | B162: 3 | C162: 7 | D162: 16 | E162: 45723.66667 | F162: 5.86 | G162: Valid | H162: 10.32333333 | I162: 11.47 | J162: Valid | K162: 17.83958333 | N162: 5.86 | O162: 10.32333333 | P162: 11.47 | Q162: 17.83958333 | R162: 11.47 | S162: 17.83958333 | T162: 5.86 | U162: 10.32333333
A163: 2025 | B163: 3 | C163: 7 | D163: 17 | E163: 45723.70833 | F163: 9.53 | G163: Valid | H163: 10.265 | I163: 16.14 | J163: Valid | K163: 17.28 | N163: 9.53 | O163: 10.265 | P163: 16.14 | Q163: 17.28 | R163: 16.14 | S163: 17.28 | T163: 9.53 | U163: 10.265
A164: 2025 | B164: 3 | C164: 7 | D164: 18 | E164: 45723.75 | F164: 10.57 | G164: Valid | H164: 10.25083333 | I164: 15.61 | J164: Valid | K164: 15.53291667 | N164: 10.57 | O164: 10.25083333 | P164: 15.61 | Q164: 15.53291667 | R164: 15.61 | S164: 15.53291667 | T164: 10.57 | U164: 10.25083333
A165: 2025 | B165: 3 | C165: 7 | D165: 19 | E165: 45723.79167 | F165: 14.64 | G165: Valid | H165: 10.45083333 | I165: 24.55 | J165: Valid | K165: 15.16208333 | N165: 14.64 | O165: 10.45083333 | P165: 24.55 | Q165: 15.16208333 | R165: 24.55 | S165: 15.16208333 | T165: 14.64 | U165: 10.45083333
A166: 2025 | B166: 3 | C166: 7 | D166: 20 | E166: 45723.83333 | F166: 13.3 | G166: Valid | H166: 10.49 | I166: 17.08 | J166: Valid | K166: 15.00666667 | N166: 13.3 | O166: 10.49 | P166: 17.08 | Q166: 15.00666667 | R166: 17.08 | S166: 15.00666667 | T166: 13.3 | U166: 10.49
A167: 2025 | B167: 3 | C167: 7 | D167: 21 | E167: 45723.875 | F167: 11.7 | G167: Valid | H167: 10.49 | I167: 14.36 | J167: Valid | K167: 14.92958333 | N167: 11.7 | O167: 10.49 | P167: 14.36 | Q167: 14.92958333 | R167: 14.36 | S167: 14.92958333 | T167: 11.7 | U167: 10.49
A168: 2025 | B168: 3 | C168: 7 | D168: 22 | E168: 45723.91667 | F168: 12.74 | G168: Valid | H168: 10.5875 | I168: 14.51 | J168: Valid | K168: 14.95416667 | N168: 12.74 | O168: 10.5875 | P168: 14.51 | Q168: 14.95416667 | R168: 14.51 | S168: 14.95416667 | T168: 12.74 | U168: 10.5875
A169: 2025 | B169: 3 | C169: 7 | D169: 23 | E169: 45723.95833 | F169: 9.61 | G169: Valid | H169: 10.63 | I169: 10.98 | J169: Valid | K169: 14.97583333 | N169: 9.61 | O169: 10.63 | P169: 10.98 | Q169: 14.97583333 | R169: 10.98 | S169: 14.97583333 | T169: 9.61 | U169: 10.63
A170: 2025 | B170: 3 | C170: 8 | D170: 0 | E170: 45724 | F170: 10.96 | G170: Valid | H170: 10.68583333 | I170: 12.75 | J170: Valid | K170: 15.06583333 | N170: 10.96 | O170: 10.68583333 | P170: 12.75 | Q170: 15.06583333 | R170: 12.75 | S170: 15.06583333 | T170: 10.96 | U170: 10.68583333
A171: 2025 | B171: 3 | C171: 8 | D171: 1 | E171: 45724.04167 | F171: 9.69 | G171: Valid | H171: 10.76708333 | I171: 11.46 | J171: Valid | K171: 15.20458333 | N171: 9.69 | O171: 10.76708333 | P171: 11.46 | Q171: 15.20458333 | R171: 11.46 | S171: 15.20458333 | T171: 9.69 | U171: 10.76708333
A172: 2025 | B172: 3 | C172: 8 | D172: 2 | E172: 45724.08333 | F172: 10.73 | G172: Valid | H172: 10.76791667 | I172: 13.43 | J172: Valid | K172: 15.28666667 | N172: 10.73 | O172: 10.76791667 | P172: 13.43 | Q172: 15.28666667 | R172: 13.43 | S172: 15.28666667 | T172: 10.73 | U172: 10.76791667
A173: 2025 | B173: 3 | C173: 8 | D173: 3 | E173: 45724.125 | F173: 10.13 | G173: Valid | H173: 10.81583333 | I173: 12.36 | J173: Valid | K173: 15.38125 | N173: 10.13 | O173: 10.81583333 | P173: 12.36 | Q173: 15.38125 | R173: 12.36 | S173: 15.38125 | T173: 10.13 | U173: 10.81583333
A174: 2025 | B174: 3 | C174: 8 | D174: 4 | E174: 45724.16667 | F174: 10.68 | G174: Valid | H174: 10.78541667 | I174: 12.88 | J174: Valid | K174: 15.38416667 | N174: 10.68 | O174: 10.78541667 | P174: 12.88 | Q174: 15.38416667 | R174: 12.88 | S174: 15.38416667 | T174: 10.68 | U174: 10.78541667
A175: 2025 | B175: 3 | C175: 8 | D175: 5 | E175: 45724.20833 | F175: 11.72 | G175: Valid | H175: 10.75125 | I175: 12.67 | J175: Valid | K175: 15.20083333 | N175: 11.72 | O175: 10.75125 | P175: 12.67 | Q175: 15.20083333 | R175: 12.67 | S175: 15.20083333 | T175: 11.72 | U175: 10.75125
A176: 2025 | B176: 3 | C176: 8 | D176: 6 | E176: 45724.25 | F176: 10.04 | G176: Valid | H176: 10.74875 | I176: 12.43 | J176: Valid | K176: 15.13583333 | N176: 10.04 | O176: 10.74875 | P176: 12.43 | Q176: 15.13583333 | R176: 12.43 | S176: 15.13583333 | T176: 10.04 | U176: 10.74875
A177: 2025 | B177: 3 | C177: 8 | D177: 7 | E177: 45724.29167 | F177: 8.2 | G177: Valid | H177: 10.51541667 | I177: 10.22 | J177: Valid | K177: 14.77625 | N177: 8.2 | O177: 10.51541667 | P177: 10.22 | Q177: 14.77625 | R177: 10.22 | S177: 14.77625 | T177: 8.2 | U177: 10.51541667
A178: 2025 | B178: 3 | C178: 8 | D178: 8 | E178: 45724.33333 | F178: 9.76 | G178: Valid | H178: 10.39375 | I178: 9.66 | J178: Valid | K178: 14.44291667 | N178: 9.76 | O178: 10.39375 | P178: 9.66 | Q178: 14.44291667 | R178: 9.66 | S178: 14.44291667 | T178: 9.76 | U178: 10.39375
A179: 2025 | B179: 3 | C179: 8 | D179: 9 | E179: 45724.375 | F179: 6.75 | G179: Valid | H179: 10.20916667 | I179: 7.76 | J179: Valid | K179: 14.08958333 | N179: 6.75 | O179: 10.20916667 | P179: 7.76 | Q179: 14.08958333 | R179: 7.76 | S179: 14.08958333 | T179: 6.75 | U179: 10.20916667
A180: 2025 | B180: 3 | C180: 8 | D180: 10 | E180: 45724.41667 | F180: 9.91 | G180: Valid | H180: 10.07708333 | I180: 13.01 | J180: Valid | K180: 13.91083333 | N180: 9.91 | O180: 10.07708333 | P180: 13.01 | Q180: 13.91083333 | R180: 13.01 | S180: 13.91083333 | T180: 9.91 | U180: 10.07708333
A181: 2025 | B181: 3 | C181: 8 | D181: 11 | E181: 45724.45833 | F181: 10.57 | G181: Valid | H181: 10.14625 | I181: 19.21 | J181: Valid | K181: 14.10166667 | N181: 10.57 | O181: 10.14625 | P181: 19.21 | Q181: 14.10166667 | R181: 19.21 | S181: 14.10166667 | T181: 10.57 | U181: 10.14625
A182: 2025 | B182: 3 | C182: 8 | D182: 12 | E182: 45724.5 | F182: 5.32 | G182: Valid | H182: 9.867083333 | I182: 11.43 | J182: Valid | K182: 13.88208333 | N182: 5.32 | O182: 9.867083333 | P182: 11.43 | Q182: 13.88208333 | R182: 11.43 | S182: 13.88208333 | T182: 5.32 | U182: 9.867083333
A183: 2025 | B183: 3 | C183: 8 | D183: 13 | E183: 45724.54167 | F183: 3.61 | G183: Valid | H183: 9.60625 | I183: 8.48 | J183: Valid | K183: 13.57583333 | N183: 3.61 | O183: 9.60625 | P183: 8.48 | Q183: 13.57583333 | R183: 8.48 | S183: 13.57583333 | T183: 3.61 | U183: 9.60625
A184: 2025 | B184: 3 | C184: 8 | D184: 14 | E184: 45724.58333 | F184: 10.83 | G184: Valid | H184: 9.733333333 | I184: 16.15 | J184: Valid | K184: 13.53541667 | N184: 10.83 | O184: 9.733333333 | P184: 16.15 | Q184: 13.53541667 | R184: 16.15 | S184: 13.53541667 | T184: 10.83 | U184: 9.733333333
A185: 2025 | B185: 3 | C185: 8 | D185: 15 | E185: 45724.625 | F185: 6 | G185: Valid | H185: 9.702083333 | I185: 8.98 | J185: Valid | K185: 13.2325 | N185: 6 | O185: 9.702083333 | P185: 8.98 | Q185: 13.2325 | R185: 8.98 | S185: 13.2325 | T185: 6 | U185: 9.702083333
A186: 2025 | B186: 3 | C186: 8 | D186: 16 | E186: 45724.66667 | F186: 7.56 | G186: Valid | H186: 9.772916667 | I186: 12.28 | J186: Valid | K186: 13.26625 | N186: 7.56 | O186: 9.772916667 | P186: 12.28 | Q186: 13.26625 | R186: 12.28 | S186: 13.26625 | T186: 7.56 | U186: 9.772916667
A187: 2025 | B187: 3 | C187: 8 | D187: 17 | E187: 45724.70833 | F187: 7.86 | G187: Valid | H187: 9.703333333 | I187: 15.43 | J187: Valid | K187: 13.23666667 | N187: 7.86 | O187: 9.703333333 | P187: 15.43 | Q187: 13.23666667 | R187: 15.43 | S187: 13.23666667 | T187: 7.86 | U187: 9.703333333
A188: 2025 | B188: 3 | C188: 8 | D188: 18 | E188: 45724.75 | F188: 8.25 | G188: Valid | H188: 9.606666667 | I188: 12.18 | J188: Valid | K188: 13.09375 | N188: 8.25 | O188: 9.606666667 | P188: 12.18 | Q188: 13.09375 | R188: 12.18 | S188: 13.09375 | T188: 8.25 | U188: 9.606666667
A189: 2025 | B189: 3 | C189: 8 | D189: 19 | E189: 45724.79167 | F189: 11.04 | G189: Valid | H189: 9.456666667 | I189: 28.45 | J189: Valid | K189: 13.25625 | N189: 11.04 | O189: 9.456666667 | P189: 28.45 | Q189: 13.25625 | R189: 28.45 | S189: 13.25625 | T189: 11.04 | U189: 9.456666667
A190: 2025 | B190: 3 | C190: 8 | D190: 20 | E190: 45724.83333 | F190: 7.8 | G190: Valid | H190: 9.2275 | I190: 16.53 | J190: Valid | K190: 13.23333333 | N190: 7.8 | O190: 9.2275 | P190: 16.53 | Q190: 13.23333333 | R190: 16.53 | S190: 13.23333333 | T190: 7.8 | U190: 9.2275
A191: 2025 | B191: 3 | C191: 8 | D191: 21 | E191: 45724.875 | F191: 5.62 | G191: Valid | H191: 8.974166667 | I191: 17.03 | J191: Valid | K191: 13.34458333 | N191: 5.62 | O191: 8.974166667 | P191: 17.03 | Q191: 13.34458333 | R191: 17.03 | S191: 13.34458333 | T191: 5.62 | U191: 8.974166667
A192: 2025 | B192: 3 | C192: 8 | D192: 22 | E192: 45724.91667 | F192: 10.1 | G192: Valid | H192: 8.864166667 | I192: 13.18 | J192: Valid | K192: 13.28916667 | N192: 10.1 | O192: 8.864166667 | P192: 13.18 | Q192: 13.28916667 | R192: 13.18 | S192: 13.28916667 | T192: 10.1 | U192: 8.864166667
A193: 2025 | B193: 3 | C193: 8 | D193: 23 | E193: 45724.95833 | F193: 8.35 | G193: Valid | H193: 8.811666667 | I193: 9.73 | J193: Valid | K193: 13.23708333 | N193: 8.35 | O193: 8.811666667 | P193: 9.73 | Q193: 13.23708333 | R193: 9.73 | S193: 13.23708333 | T193: 8.35 | U193: 8.811666667
A194: 2025 | B194: 3 | C194: 9 | D194: 0 | E194: 45725 | F194: 3.72 | G194: Valid | H194: 8.51 | I194: 12.9 | J194: Valid | K194: 13.24333333 | N194: =IF(G194="Valid", F194, NA()) -> 3.72 | O194: =IF(G194="Valid", H194, NA()) -> 8.51 | P194: =IF(J194="Valid", I194, NA()) -> 12.9 | Q194: =IF(J194="Valid", K194, NA()) -> 13.24333333 | R194: 12.9 | S194: 13.24333333 | T194: 3.72 | U194: 8.51
A195: 2025 | B195: 3 | C195: 9 | D195: 1 | E195: 45725.04167 | F195: 4.72 | G195: Valid | H195: 8.302916667 | I195: 9.12 | J195: Valid | K195: 13.14583333 | N195: 4.72 | O195: 8.302916667 | P195: 9.12 | Q195: 13.14583333 | R195: 9.12 | S195: 13.14583333 | T195: 4.72 | U195: 8.302916667
A196: 2025 | B196: 3 | C196: 9 | D196: =IF(D195=23,0,D195+1) -> 2 | E196: =E195+0.0416666666666666 -> 45725.08333 | F196: 11.3 | G196: Valid | H196: 8.326666667 | I196: 14.3 | J196: Valid | K196: 13.18208333 | N196: 11.3 | O196: 8.326666667 | P196: 14.3 | Q196: 13.18208333 | R196: 14.3 | S196: 13.18208333 | T196: 11.3 | U196: 8.326666667
A197: 2025 | B197: 3 | C197: 9 | D197: 3 | E197: 45725.125 | F197: 6.61 | G197: Valid | H197: 8.18 | I197: 8.83 | J197: Valid | K197: 13.035 | N197: 6.61 | O197: 8.18 | P197: 8.83 | Q197: 13.035 | R197: 8.83 | S197: 13.035 | T197: 6.61 | U197: 8.18
A198: 2025 | B198: 3 | C198: 9 | D198: 4 | E198: 45725.16667 | F198: 9.15 | G198: Valid | H198: 8.11625 | I198: 12.22 | J198: Valid | K198: 13.0075 | N198: 9.15 | O198: 8.11625 | P198: 12.22 | Q198: 13.0075 | R198: 12.22 | S198: 13.0075 | T198: 9.15 | U198: 8.11625
A199: 2025 | B199: 3 | C199: 9 | D199: 5 | E199: 45725.20833 | F199: 6.22 | G199: Valid | H199: 7.887083333 | I199: 10.01 | J199: Valid | K199: 12.89666667 | N199: 6.22 | O199: 7.887083333 | P199: 10.01 | Q199: 12.89666667 | R199: 10.01 | S199: 12.89666667 | T199: 6.22 | U199: 7.887083333
A200: 2025 | B200: 3 | C200: 9 | D200: 6 | E200: 45725.25 | F200: 11.36 | G200: Valid | H200: 7.942083333 | I200: 18.63 | J200: Valid | K200: 13.155 | N200: 11.36 | O200: 7.942083333 | P200: 18.63 | Q200: 13.155 | R200: 18.63 | S200: 13.155 | T200: 11.36 | U200: 7.942083333
... 545 more rows
